[Event "Slovakia Open 2022"]
[Site "Bratislava"]
[Date "2022.10.01"]
[Round "7.18"]
[White "Rosol, Alexander"]
[Black "Romanova, Ela"]
[Result "1-0"]
[ECO "B20"]
[WhiteElo "2041"]
[BlackElo "1580"]
[Annotator "TA"]
[PlyCount "53"]
[EventDate "2022.09.30"]
[EventCountry "SVK"]
[SourceTitle "playchess.com"]
[Source "ChessBase"]
[SourceQuality "1"]
[TimeControl "2700+10"]

{[%evp 9,53,-25,-19,0,-1,-47,-31,-91,-80,-127,-121,-111,-65,-117,7,14,5,14,183,195,245,253,292,276,318,303,582,564,567,545,697,704,681,691,1214,1205,1218,1215,1180,1167,2030,862,867,845,835,831]} 1. e4 {[%emt 0:00:09]} c5 {[%emt 0:00:01]} 2. b4 {[%emt 0:00:11]} cxb4 {[%emt 0:00:49]} 3. a3 {[%emt 0:00:06]} e6 {[%emt 0:01:20]} 4. d4 {[%emt 0:00:16]} Nf6 {[%emt 0:00:20]} 5. Bd3 {[%emt 0:01:11]} Nc6 {[%emt 0:00:43]} 6. Nf3 {[%emt 0:00:03] B20: Sicilian: Unusual White 2nd moves.} Be7 {[%emt 0:00:52] [#]} 7. h4 $146 {[%emt 0:00:38]} (7. O-O $11 {feels stronger.}) ({Predecessor:} 7. O-O d6 8. Re1 e5 9. d5 Nb8 10. axb4 O-O 11. h3 Nbd7 12. c4 b6 13. Nc3 Bb7 14. Re2 a5 15. bxa5 Rxa5 16. Rxa5 bxa5 {½-½ (40) Araujo,R (1903)-Da Silva,T (2080) Sao Paulo 2019}) 7... Qb6 {[%emt 0:01:18]} 8. Kf1 {[%emt 0:01:38]} (8. O-O $15) 8... Ng4 $17 {[%emt 0:03:36]} 9. Nbd2 {[%emt 0:02:37]} (9. Be2 $142) 9... d5 {[%emt 0:03:41]} (9... Nxd4 $2 10. Nc4 Qd8 11. Nxd4 $18) 10. Qe2 {[%emt 0:01:50]} Bd7 {[%emt 0:04:04]} ({Resist} 10... Nxd4 11. Nxd4 Qxd4 12. Nb3 Qxf2+ 13. Qxf2 Nxf2 14. Kxf2 $16) ({Black should try} 10... O-O $17 11. a4 f5 12. exf5 exf5) 11. Nb3 {[%emt 0:02:39]} (11. Rb1 $15) 11... a5 {[%emt 0:00:39]} ({Better is} 11... O-O $17 {aiming for ...bxa3.} 12. a4 dxe4 13. Qxe4 Nf6) 12. exd5 $11 {[%emt 0:00:37]} exd5 {[%emt 0:00:12] Hoping for ...0-0.} 13. Nc5 {[%emt 0:00:16]} O-O-O {[%emt 0:01:43] [#] A mistake that costs the game.} (13... Bc8 $11 {and Black stays safe.}) 14. axb4 $1 $18 {[%emt 0:00:48]} Bxc5 {[%emt 0:06:04]} (14... Qxb4 $142 15. Nxd7 Rxd7) 15. bxc5 {[%emt 0:00:51]} Qc7 {[%emt 0:00:53]} 16. g3 {[%emt 0:01:00]} Rhe8 {[%emt 0:01:26] [#]} 17. Qd1 {[%emt 0:00:22] Bf4 is the strong threat.} Be6 $2 {[%emt 0:00:59]} (17... f6 {was called for.} 18. Bf4 Nge5 19. dxe5 fxe5) 18. Bf4 {[%emt 0:00:20] White is clearly winning.} Qd7 {[%emt 0:00:52]} 19. Bb5 {[%emt 0:00:13]} Nf6 {[%emt 0:08:49]} 20. Ne5 {[%emt 0:03:04]} Bh3+ {[%emt 0:00:57]} 21. Kg1 {[%emt 0:00:03]} Qf5 {[%emt 0:00:46]} 22. Bxc6 {[%emt 0:00:08]} bxc6 {[%emt 0:00:17]} 23. Rxa5 {[%emt 0:00:29] Threatening mate with Ra8+.} Rxe5 {[%emt 0:00:31]} 24. dxe5 {[%emt 0:00:30] Threatens to win with Ra7.} Ne4 {[%emt 0:04:29]} 25. Qb1 {[%emt 0:00:30]} (25. e6 $142 Qxe6 26. Ra7) 25... Kd7 {[%emt 0:02:34]} 26. Qb7+ {[%emt 0:01:03]} Ke8 {[%emt 0:00:12]} 27. Ra7 {[%emt 0:00:07] Weighted Error Value: White=0.18 (very precise) /Black=0.70} 1-0

[Event "Slovakia Open 2022"]
[Site "Bratislava"]
[Date "2022.10.01"]
[Round "7.19"]
[White "Mandak, Miroslav"]
[Black "Hasala, Richard"]
[Result "1-0"]
[ECO "B20"]
[WhiteElo "1864"]
[BlackElo "1537"]
[Annotator "NA COMBH"]
[PlyCount "69"]
[EventDate "2022.09.30"]
[EventCountry "SVK"]
[SourceTitle "playchess.com"]
[Source "ChessBase"]
[SourceQuality "1"]
[TimeControl "2700+10"]

1. e4 {[%emt 0:00:07]} c5 {[%emt 0:00:02]} 2. c4 {[%emt 0:00:13]} Nc6 {[%emt 0:00:03]} 3. Nc3 {[%emt 0:00:20]} e5 {[%emt 0:00:02]} 4. d3 {[%emt 0:00:57]} d6 {[%emt 0:01:10]} 5. f4 {[%emt 0:00:15]} Nf6 {[%emt 0:00:22]} 6. Nf3 {[%emt 0:00:19]} Bg4 {[%emt 0:00:03]} 7. Be2 {[%emt 0:00:05]} Bxf3 {[%emt 0:00:07]} 8. Bxf3 {[%emt 0:00:04]} Be7 {[%emt 0:00:05]} 9. O-O {[%emt 0:00:25]} O-O {[%emt 0:00:03]} 10. Kh1 {[%emt 0:04:52]} a6 {[%emt 0:02:00]} 11. f5 {[%emt 0:04:12]} Rb8 {[%emt 0:00:28]} 12. g4 {[%emt 0:00:51]} Nd7 {[%emt 0:00:22]} 13. Qd2 {[%emt 0:06:56]} h6 {[%emt 0:00:27]} 14. Qf2 {[%emt 0:02:31]} Bh4 {[%emt 0:02:39]} 15. Qg2 {[%emt 0:00:31]} Bg5 {[%emt 0:06:30]} 16. Bxg5 {[%emt 0:02:05]} hxg5 {[%emt 0:00:03]} 17. Bd1 {[%emt 0:02:33]} g6 {[%emt 0:03:57]} 18. Ba4 {[%emt 0:02:03]} Kg7 {[%emt 0:01:24]} 19. Rf2 {[%emt 0:04:45]} f6 {[%emt 0:01:47]} 20. Nd5 {[%emt 0:01:20]} b5 {[%emt 0:00:32]} 21. Bb3 {[%emt 0:02:34]} gxf5 {[%emt 0:00:37]} 22. Rxf5 {[%emt 0:01:07]} Nd4 {[%emt 0:00:36]} 23. Rf2 {[%emt 0:00:08]} Nb6 {[%emt 0:00:40]} 24. Ne3 {[%emt 0:01:51]} Rh8 {[%emt 0:01:33]} 25. cxb5 {[%emt 0:01:08]} axb5 {[%emt 0:00:03]} 26. Nf1 {[%emt 0:01:55]} Ra8 {[%emt 0:00:48]} 27. Rc1 {[%emt 0:00:54]} Nxb3 {[%emt 0:02:08]} 28. axb3 {[%emt 0:00:03]} Qd7 {[%emt 0:07:43]} 29. Ng3 {[%emt 0:00:22]} Kg6 {[%emt 0:02:17]} 30. Rcf1 {[%emt 0:00:57]} Raf8 {[%emt 0:00:24]} 31. Nh5 {[%emt 0:00:33]} Rf7 {[%emt 0:02:31]} 32. Rxf6+ {[%emt 0:00:10]} Rxf6 {[%emt 0:00:10]} 33. Rxf6+ {[%emt 0:00:07]} Kh7 {[%emt 0:00:03]} 34. Qf3 {[%emt 0:00:34]} Qd8 {[%emt 0:03:01]} 35. Qf5+ {[%emt 0:00:11]} 1-0

[Event "Slovakia Open 2022"]
[Site "Bratislava"]
[Date "2022.10.01"]
[Round "7.20"]
[White "Krajnak, Robert"]
[Black "Hlavac, Tomas"]
[Result "1-0"]
[ECO "E67"]
[WhiteElo "1931"]
[BlackElo "1554"]
[Annotator "TA"]
[PlyCount "83"]
[EventDate "2022.09.30"]
[EventCountry "SVK"]
[SourceTitle "playchess.com"]
[Source "ChessBase"]
[SourceQuality "1"]
[TimeControl "2700+10"]

{[%evp 14,83,24,25,44,16,97,25,64,43,116,103,108,52,56,55,66,-112,-97,-103,-20,-36,-36,-42,-39,-79,-35,-129,-109,-151,-68,-95,-77,-120,-127,-143,-128,-165,-156,-145,-112,-101,-79,-102,-64,-49,-28,-374,-57,-47,-55,-96,0,0,0,0,51,60,29975,29976,29988,29989,29989,29990,29992,29991,29991,29992,29992,29991,29994,29995]} 1. c4 {[%emt 0:00:05]} Nf6 {[%emt 0:00:02]} 2. Nc3 {[%emt 0:00:03]} g6 {[%emt 0:00:01]} 3. g3 {[%emt 0:00:05]} Bg7 {[%emt 0:00:03]} 4. Bg2 {[%emt 0:00:03]} O-O {[%emt 0:00:02]} 5. Nf3 {[%emt 0:00:18]} d6 {[%emt 0:00:12]} 6. O-O {[%emt 0:00:03]} c6 {[%emt 0:00:01]} 7. d4 {[%emt 0:00:29]} Nbd7 {[%emt 0:00:34] Recently 7...Bf5 got a lot of attention.} 8. e4 {[%emt 0:00:08]} a6 {[%emt 0:01:03] E67: King's Indian: Fianchetto: 6...Nbd7.} 9. a4 {[%emt 0:00:31] [#]} b6 $146 {[%emt 0:03:52]} (9... a5 $11 {remains equal.}) ({Predecessor:} 9... e5 10. h3 Ne8 11. Be3 f5 12. Qd2 Ndf6 13. dxe5 Nxe4 14. Qd3 Nxc3 15. bxc3 Qc7 16. exd6 Qxd6 17. Qxd6 Nxd6 18. Bc5 {1-0 (61) Juhanak,D (1567)-Vana,J (1268) Karlovy Vary 2020}) 10. h3 {[%emt 0:01:49]} (10. e5 $16 Ne8 11. Re1) 10... Bb7 {[%emt 0:03:32] White has an edge.} 11. Be3 {[%emt 0:02:37]} b5 {[%emt 0:05:42]} (11... e5 $14) 12. e5 $16 {[%emt 0:06:59]} ({Much worse is} 12. cxb5 $6 cxb5 13. e5 (13. axb5 axb5 14. Nd2 Rxa1 $11) 13... Nd5 $11) 12... Ne8 {[%emt 0:00:37][%cal Bf6e8,Be8d6,Bd6c4,Bc4e3][%mdl 32]} 13. exd6 {[%emt 0:00:24] White is more active.} ({Don't do} 13. axb5 cxb5 14. exd6 (14. cxb5 axb5 15. Nxb5 dxe5 $11) 14... Nxd6 $14) (13. e6 $1 $16 {[%cal Re6d7]}) 13... Nxd6 {[%emt 0:00:23]} 14. c5 {[%emt 0:00:19]} Nc4 {[%emt 0:01:10]} 15. b3 $2 {[%emt 0:02:04]} (15. Bg5 $14 {keeps the upper hand.}) 15... Nxe3 $17 {[%emt 0:00:06]} 16. fxe3 {[%emt 0:00:02]} Qc7 {[%emt 0:01:00]} (16... Nxc5 $1 $17 {With the idea ...Nd7.} 17. Rc1 Ne6) 17. Qe1 {[%emt 0:06:31]} b4 {[%emt 0:00:24]} 18. Ne4 {[%emt 0:00:16]} a5 {[%emt 0:00:06]} 19. Rd1 {[%emt 0:01:37]} Nf6 {[%emt 0:00:23][%cal Bd7f6,Bf6d5,Bd5c3][%mdl 32]} 20. Ned2 {[%emt 0:03:50]} (20. Nxf6+ $1 $15 Bxf6 21. Nd2) 20... Nd5 {[%emt 0:00:48]} 21. Nc4 {[%emt 0:00:30]} Bh6 {[%emt 0:00:28]} (21... Ba6 $17 {And now ...Bxc4 would win.} 22. Rc1 Bxc4 23. bxc4 Nc3 24. Rxc3 bxc3) 22. Rd3 {[%emt 0:00:54]} Rad8 {[%emt 0:00:42]} 23. g4 {[%emt 0:01:55]} Ba6 {[%emt 0:00:18]} 24. Nfd2 {[%emt 0:02:56] [#]} Nc3 $1 {[%emt 0:12:38]} 25. Ne4 {[%emt 0:02:56]} Bxc4 {[%emt 0:00:45]} 26. bxc4 {[%emt 0:00:03]} Nxe4 {[%emt 0:01:17]} 27. Bxe4 {[%emt 0:00:02]} e5 {[%emt 0:00:38] Threatens to win with ...exd4.} 28. Qf2 {[%emt 0:01:00]} exd4 {[%emt 0:01:40]} 29. exd4 {[%emt 0:00:08]} Rfe8 {[%emt 0:00:50]} 30. Qg2 {[%emt 0:00:42][%mdl 8192] [#]} (30. Bg2 $11 {and White stays safe.}) 30... Rc8 $2 {[%emt 0:03:11]} (30... Rxd4 $3 $19 {[%mdl 512]} 31. Rxd4 Be3+ 32. Kh1 Bxd4 33. Bxc6 Re3) 31. Kh1 $15 {[%emt 0:00:57]} Bg7 {[%emt 0:01:04]} 32. d5 {[%emt 0:00:33][%cal Rd5c6]} cxd5 {[%emt 0:00:14]} ({Black should try} 32... Qe7 $17 33. Bf3 Qxc5 34. dxc6 Qxc4) 33. Bxd5 $11 {[%emt 0:00:05]} Rf8 {[%emt 0:00:08]} 34. c6 {[%emt 0:00:08]} Rb8 {[%emt 0:00:33]} ({Better is} 34... Kh8 $11) 35. Rdf3 $14 {[%emt 0:01:53] aiming for Rxf7.} b3 $2 {[%emt 0:01:30][%mdl 8192]} (35... Qe5 $14) 36. Rxf7 $1 {[%emt 0:00:53][%csl Gf1][%cal Rf7f8] White mates.} Kh8 {[%emt 0:00:46]} 37. Rxc7 {[%emt 0:00:05]} b2 {[%emt 0:00:07]} 38. Rb7 {[%emt 0:00:08]} Rfe8 {[%emt 0:00:55]} 39. Qf3 {[%emt 0:01:40]} Rf8 {[%emt 0:01:50]} 40. Rxb8 {[%emt 0:00:56]} Rxb8 {[%emt 0:00:03]} 41. c7 {[%emt 0:00:48]} Rc8 {[%emt 0:00:15]} 42. Qf7 {[%emt 0:00:15] White used his chance.  Weighted Error Value: White=0.42/Black=0.43} 1-0

[Event "Slovakia Open 2022"]
[Site "Bratislava"]
[Date "2022.10.01"]
[Round "7.21"]
[White "Migalko, Dmitriy"]
[Black "Mizicka, Matus"]
[Result "0-1"]
[ECO "B00"]
[WhiteElo "1528"]
[BlackElo "1975"]
[Annotator "TA"]
[PlyCount "106"]
[EventDate "2022.09.30"]
[EventCountry "SVK"]
[SourceTitle "playchess.com"]
[Source "ChessBase"]
[SourceQuality "1"]
[TimeControl "2700+10"]

{[%evp 11,106,7,12,14,10,16,20,6,15,8,11,-36,15,9,11,10,50,45,85,79,66,28,55,86,75,81,120,64,64,0,0,2,27,-23,-13,-22,-25,-70,-69,-126,-106,-118,-109,-113,-110,-152,-104,-104,-114,-131,-22,-39,-25,-170,-164,-531,-487,-925,-793,-758,-704,-654,-453,-661,-661,-1008,-945,-1131,-1516,-1476,-1364,-29957,-29965,-6052,-5945,-4698,-5181,-29971,-29972,-29978,-29977,-29980,-29977,-29981,-29982,-29983,-29984,-29987,-29983,-29982,-29980,-29985,-29986,-29988,-29989,-29989,-29990]} 1. e4 {[%emt 0:00:09]} b6 {[%emt 0:00:01]} 2. Nf3 {[%emt 0:00:09]} Bb7 {[%emt 0:00:02]} 3. Nc3 {[%emt 0:00:01]} e6 {[%emt 0:00:01]} 4. d4 {[%emt 0:00:02]} Bb4 {[%emt 0:00:02]} 5. Bd3 {[%emt 0:00:03]} Nf6 {[%emt 0:00:02]} 6. e5 {[%emt 0:00:06]} Nd5 {[%emt 0:00:11]} 7. Bd2 {[%emt 0:00:03] B00: Queen's Fianchetto Defence, Nimzowitsch Defence.} Nxc3 {[%emt 0:00:07]} 8. bxc3 {[%emt 0:00:01]} Be7 {[%emt 0:00:06]} 9. O-O {[%emt 0:00:40] The position is equal.} d6 {[%emt 0:00:06]} 10. Re1 {[%emt 0:01:17][%cal Bf1e1,Be1e4,Be4g4][%mdl 32]} (10. a4 {seems wilder.} O-O 11. Qe2 dxe5 12. Nxe5 Nd7 13. Bf4) 10... Nd7 {[%emt 0:00:31] [#]} 11. Be4 $146 {[%emt 0:01:40]} (11. exd6 $11 Bxd6 12. Bg5) ({Predecessor:} 11. Qe2 h6 12. Be4 Bxe4 13. Qxe4 d5 14. Qg4 g6 15. Qf4 Nf8 16. a4 a5 17. Qe3 {0-1 (27) Wilson,N (1590)-Takahashi,Y (1531) ICCF email 2017}) 11... Bxe4 {[%emt 0:00:24]} (11... d5 $15 12. Bd3 c5) 12. Rxe4 $11 {[%emt 0:00:02]} d5 {[%emt 0:00:01]} 13. Rg4 {[%emt 0:00:57]} g6 {[%emt 0:02:57]} 14. Bh6 {[%emt 0:04:39]} f5 {[%emt 0:08:00]} 15. exf6 {[%emt 0:00:20]} Nxf6 {[%emt 0:00:02]} 16. Bg7 {[%emt 0:00:03] Threatens to win with Rxg6.} Rg8 {[%emt 0:00:40]} 17. Bxf6 {[%emt 0:00:03]} Bxf6 {[%emt 0:00:02]} 18. Qe2 {[%emt 0:00:31]} Kd7 {[%emt 0:00:56]} 19. Ne5+ {[%emt 0:00:40]} ({Better is} 19. Re1 $16 {[%csl Ge1][%cal Re2e6]} Re8 20. c4) 19... Bxe5 $14 {[%emt 0:00:07]} 20. Qxe5 {[%emt 0:00:33]} (20. dxe5 $14 h5 21. Rg3) 20... Qe7 $11 {[%emt 0:00:24]} 21. c4 {[%emt 0:02:57]} Qd6 {[%emt 0:00:45]} 22. cxd5 {[%emt 0:02:38]} (22. Qe3 $142) 22... Qxe5 {[%emt 0:00:25]} 23. dxe5 {[%emt 0:00:06]} exd5 {[%emt 0:00:03][%mdl 4096] Endgame KRR-KRR} 24. Rd4 {[%emt 0:00:27]} Ke6 {[%emt 0:00:02]} 25. c4 {[%emt 0:00:50]} ({White should try} 25. Rad1 $15) 25... dxc4 $17 {[%emt 0:06:03]} ({But not} 25... Kxe5 $6 26. Rxd5+ Kf6 27. Rad1 $11) 26. Rxc4 {[%emt 0:00:03]} c5 {[%emt 0:00:05]} 27. Re1 {[%emt 0:00:45]} Rad8 {[%emt 0:00:10]} 28. Rh4 {[%emt 0:00:59] [#]} h5 {[%emt 0:00:31]} (28... Rg7 $142 $1 29. Rf4 Rf7 30. Rxf7 Kxf7) 29. Ra4 {[%emt 0:00:43]} Rg7 {[%emt 0:00:40]} 30. h4 {[%emt 0:00:39]} Rd4 {[%emt 0:05:27]} (30... Rd2 $17 {aiming for ...Rc7.} 31. f4 Rc7) 31. Rxd4 $11 {[%emt 0:00:15]} cxd4 {[%emt 0:00:01] KR-KR} 32. Re4 {[%emt 0:00:01] [#] This costs White the game.} (32. f4 $11) 32... Kd5 $1 $19 {[%emt 0:00:22]} 33. f3 {[%emt 0:00:10]} (33. Re1 {nothing else works.}) 33... Re7 {[%emt 0:00:20]} 34. Rf4 {[%emt 0:03:56]} (34. Re1 $142 Rxe5 35. Rd1) 34... Rxe5 {[%emt 0:00:23]} 35. Rf7 {[%emt 0:00:15]} a5 {[%emt 0:00:04]} 36. Rd7+ {[%emt 0:00:07]} Kc5 {[%emt 0:00:42]} 37. Kf2 {[%emt 0:00:31]} (37. g4 $142 hxg4 38. fxg4) 37... Re6 {[%emt 0:00:18]} 38. a4 {[%emt 0:00:23]} Kc4 {[%emt 0:00:13]} 39. g4 {[%emt 0:00:23]} hxg4 {[%emt 0:00:10]} 40. fxg4 {[%emt 0:00:02]} d3 {[%emt 0:00:50][%cal Bd4d3,Bd3d2][%mdl 32] ( -> ...Kc3)} 41. Rc7+ {[%emt 0:00:05]} Kb3 {[%emt 0:00:20]} 42. Rd7 {[%emt 0:00:10]} Kc2 {[%emt 0:00:27] Strongly threatening ...d2.} 43. Rc7+ {[%emt 0:00:02]} Kd1 {[%emt 0:00:07]} 44. h5 {[%emt 0:00:02]} gxh5 {[%emt 0:00:18] Black mates.} 45. gxh5 {[%emt 0:00:01]} d2 {[%emt 0:00:54]} 46. Rc8 {[%emt 0:01:23]} Rf6+ {[%emt 0:00:41]} 47. Kg2 {[%emt 0:00:16]} Rh6 {[%emt 0:00:32]} 48. Rb8 {[%emt 0:00:13]} Rxh5 {[%emt 0:00:32]} 49. Rxb6 {[%emt 0:00:02]} Rh4 {[%emt 0:00:07]} 50. Kf3 {[%emt 0:00:22]} Rxa4 {[%emt 0:00:17]} 51. Ke3 {[%emt 0:00:02]} Ra3+ {[%emt 0:00:33]} 52. Kd4 {[%emt 0:00:10]} Kc2 {[%emt 0:00:50]} 53. Rc6+ {[%emt 0:00:05]} Kb2 {[%emt 0:00:23] Weighted Error Value: White=0.68/Black=0.19 (very precise)} 0-1

[Event "Slovakia Open 2022"]
[Site "Bratislava"]
[Date "2022.10.01"]
[Round "7.22"]
[White "Meszaros, Casey Ryan"]
[Black "Matejka, Simon"]
[Result "1-0"]
[ECO "D46"]
[WhiteElo "1925"]
[BlackElo "1422"]
[Annotator "TA"]
[PlyCount "49"]
[EventDate "2022.09.30"]
[EventCountry "SVK"]
[SourceTitle "playchess.com"]
[Source "ChessBase"]
[SourceQuality "1"]
[TimeControl "2700+10"]

{[%evp 14,49,11,11,26,-5,37,37,45,31,45,37,191,190,189,198,188,192,193,0,205,210,930,557,589,593,1256,1243,2504,2285,2453,2433,2057,1945,1985,2017,29998,29999]} 1. d4 {[%emt 0:00:38]} d5 {[%emt 0:00:23]} 2. c4 {[%emt 0:00:09]} e6 {[%emt 0:00:03]} 3. Nc3 {[%emt 0:00:07]} Nf6 {[%emt 0:00:10]} 4. e3 {[%emt 0:00:25]} Be7 {[%emt 0:00:27]} 5. Nf3 {[%emt 0:00:15]} O-O {[%emt 0:00:15]} 6. Bd3 {[%emt 0:00:33]} c6 {[%emt 0:00:30]} 7. O-O {[%emt 0:00:14]} Nbd7 {[%emt 0:00:27]} 8. Re1 {[%emt 0:00:13] 8.e4 is setting a new trend.} a6 {[%emt 0:00:32] D46: Semi-Slav: 5 e3 Nbd7 6 Bd3, Black avoids the Meran.} 9. a4 {[%emt 0:02:17]} Re8 {[%emt 0:01:06]} 10. e4 {[%emt 0:02:08]} dxe4 {[%emt 0:00:43] White is slightly better.} 11. Nxe4 {[%emt 0:02:09]} Nxe4 {[%emt 0:00:35]} 12. Bxe4 {[%emt 0:00:19] [#]} Bd6 $146 {[%emt 0:00:41] [#]} ({Black should play} 12... c5 $14) ({Predecessor:} 12... Nf6 13. Bc2 c5 14. Be3 Qc7 15. h3 b6 16. Qe2 Bb7 17. b3 Rad8 18. Red1 Ne4 {1-0 (51) Bocharov,O (1923)-Kornev,S (1613) Voronezh 2014}) 13. Bxh7+ $1 $18 {[%emt 0:07:22][%mdl 512]} Kxh7 {[%emt 0:04:14]} 14. Ng5+ $1 {[%emt 0:00:26]} Kg8 {[%emt 0:00:09] White must now prevent ...Nf6.} 15. Qh5 {[%emt 0:00:11] Qh7+ would kill now.} Qf6 {[%emt 0:00:25] [#] aiming for ...Nf8.} (15... Nf6 16. Qxf7+ Kh8 17. Re4 $1 {[%mdl 512]} Bxh2+ 18. Kxh2 Qc7+ 19. Qxc7 Nxe4 20. Qf7 $18) 16. Qh7+ $1 {[%emt 0:00:42]} ({Worse is} 16. c5 Bc7 17. Qh7+ Kf8 $17) 16... Kf8 {[%emt 0:00:02] [#] Hoping for ...Bb4.} 17. Ne4 $1 $40 {[%emt 0:00:38][%csl LRd6,LRf6][%mdl 128] White goes for the king. The board is on fire.} Qxd4 $2 {[%emt 0:04:34]} (17... Qg6 18. Qxg6 Bxh2+ 19. Kxh2 fxg6) 18. Bg5 {[%emt 0:06:02][%cal Rh7h8]} f6 {[%emt 0:01:13]} 19. Rad1 {[%emt 0:03:00]} Bxh2+ {[%emt 0:03:55]} 20. Kxh2 {[%emt 0:03:00]} Qe5+ {[%emt 0:03:12]} 21. f4 {[%emt 0:00:38]} Qf5 {[%emt 0:00:23]} 22. Qh8+ {[%emt 0:00:32][%mdl 64] Deflection} Ke7 {[%emt 0:00:08]} 23. Qxg7+ {[%emt 0:00:28]} Kd8 {[%emt 0:00:15]} 24. Nxf6 {[%emt 0:01:09][%cal Rd1d7] White threatens Rxd7+ and mate.} Qa5 {[%emt 0:01:46]} 25. Rxd7+ {[%emt 0:00:37] Weighted Error Value: White=0.46/Black=0.90} 1-0

[Event "Slovakia Open 2022"]
[Site "Bratislava"]
[Date "2022.10.01"]
[Round "7.23"]
[White "Hryshko Herman"]
[Black "Rosol, Philip"]
[Result "0-1"]
[ECO "A31"]
[WhiteElo "1000"]
[BlackElo "1885"]
[Annotator "NA RC COMBH"]
[PlyCount "20"]
[EventDate "2022.09.30"]
[EventCountry "SVK"]
[SourceTitle "playchess.com"]
[Source "ChessBase"]
[SourceQuality "1"]
[TimeControl "2700+10"]

1. d4 {[%emt 0:00:06]} Nf6 {[%emt 0:00:02]} 2. c4 {[%emt 0:00:01]} c5 {[%emt 0:00:02]} 3. Nf3 {[%emt 0:00:07]} cxd4 {[%emt 0:00:19]} 4. Nxd4 {[%emt 0:00:02]} Nc6 {[%emt 0:01:12]} 5. Nxc6 {[%emt 0:00:15]} bxc6 {[%emt 0:00:11]} 6. Nc3 {[%emt 0:00:05]} e5 {[%emt 0:00:48]} 7. Bg5 {[%emt 0:00:10]} Bb4 {[%emt 0:07:19]} 8. Qc2 {[%emt 0:00:58]} O-O {[%emt 0:00:52]} 9. e3 {[%emt 0:00:14]} h6 {[%emt 0:02:22]} 10. Bh4 {[%emt 0:00:48]} Qe7 {[%emt 0:04:47]} 0-1